bitfinex/quotes_SOLUSD_20220208
["timestamp","ask_amount","ask_price","bid_price","bid_amount"]
[1644343846424,1.26946444,111.65,111.55,142.36376334]
[1644343846622,1.26946444,111.65,111.56,0.024]
[1644343846822,1.26946444,111.66,111.58,13.4381]
[1644343847020,1.26946444,111.66,111.59,24.3453]
[1644343847222,1.26946444,111.67,111.6,44.25615726]
[1644343847622,1.26946444,111.68,111.6,46.3369536]
[1644343847821,1.26946444,111.67,111.6,46.3369536]
[1644343848221,1.26946444,111.68,111.6,46.3369536]
[1644343848622,7.26946444,111.68,111.6,46.3369536]
[1644343848825,20.70736444,111.68,111.61,13.4379]
[1644343851726,20.95736444,111.68,111.61,13.4379]
[1644343855229,20.70736444,111.68,111.61,13.4379]
[1644343855430,1.26946444,111.68,111.61,15.76869634]
[1644343855728,1.26946444,111.7,111.61,38.89889634]
[1644343855930,1.26946444,111.71,111.61,98.90889634]
[1644343856130,1.26946444,111.72,111.61,98.90889634]
[1644343856929,1.26946444,111.73,111.61,98.90889634]
[1644343857129,7.26946444,111.73,111.61,98.90889634]
[1644343858930,6.0,111.73,111.61,98.90889634]
[1644343859133,20.70056444,111.74,111.61,98.90889634]
[1644343859432,20.70056444,111.74,111.61,112.30039634]
[1644343860754,20.70056444,111.74,111.65,13.4307]
[1644343860932,20.70056444,111.74,111.66,37.4205632]
[1644343862533,1.26946444,111.73,111.66,37.4205632]
[1644343862734,20.70096444,111.73,111.68,13.4307]
[1644343863135,19.4315,111.73,111.68,13.4307]
[1644343866137,13.4315,111.73,111.68,13.4307]
[1644343866337,13.6815,111.73,111.68,13.4307]
[1644343866538,19.6815,111.73,111.68,13.4307]
[1644343868760,6.25,111.73,111.68,21.1477]
[1644343868961,1.26946444,111.75,111.69,2.08076131]
[1644343869160,25.39136444,111.77,111.7,13.4269]
[1644343869362,1.26946444,111.77,111.7,13.4269]
[1644343869560,45.21000339,111.76,111.71,37.00953032]
[1644343870362,14.69636444,111.77,111.71,37.00953032]
[1644343870661,13.6769,111.77,111.71,48.35353032]
[1644343870864,13.6769,111.77,111.72,13.4261]
[1644343871863,13.4269,111.77,111.72,13.4261]
[1644343872761,19.4269,111.77,111.72,13.4261]
[1644343872965,13.4269,111.77,111.72,13.4261]
[1644343873363,13.6769,111.77,111.72,13.4261]
[1644343874369,13.4269,111.77,111.72,13.4261]
[1644343874573,1.26946444,111.79,111.72,13.4261]
[1644343874865,1.26946444,111.8,111.72,13.4261]
[1644343875067,7.26946444,111.8,111.72,13.4261]
[1644343875267,1.26946444,111.8,111.72,13.4261]
[1644343875469,43.94866873,111.8,111.73,22.7153]
[1644343875669,37.94866873,111.8,111.73,22.7153]
[1644343875868,37.94866873,111.8,111.75,51.49252309]
[1644343876169,1.26946444,111.8,111.75,61.12352309]
[1644343877470,1.26946444,111.81,111.75,63.2042844]
[1644343879675,7.26946444,111.85,111.75,148.2027844]
[1644343879872,1.26946444,111.85,111.75,148.2027844]
[1644343880073,7.26946444,111.85,111.75,148.2027844]
[1644343880274,15.93361891,111.88,111.76,86.0]
[1644343880471,2.51971891,111.88,111.77,103.19625566]
[1644343880681,1.26465869,111.88,111.8,13.4128]
[1644343880877,4.65412328,111.91,111.81,54.01]
[1644343881071,4.65412328,111.91,111.81,60.01]
[1644343881273,4.65412328,111.91,111.82,43.4919354]
[1644343881472,46.70967208,111.93,111.82,45.57794244]
[1644343881673,46.70967208,111.93,111.84,13.4077]
[1644343881871,46.70967208,111.93,111.84,21.2247]
[1644343882072,52.70967208,111.93,111.84,21.2247]
[1644343882276,52.70967208,111.93,111.84,13.4077]
[1644343882472,52.70967208,111.93,111.83,23.582]
[1644343882673,2.10775549,111.92,111.82,43.4919354]
[1644343883073,8.35775549,111.92,111.82,43.4919354]
[1644343883294,6.25,111.92,111.82,43.4919354]
[1644343883484,0.25,111.92,111.82,43.4919354]
[1644343883685,19.661,111.92,111.82,56.9058354]
[1644343883886,19.411,111.92,111.82,56.9058354]
[1644343884086,21.76875549,111.92,111.82,43.4919354]
[1644343886385,21.76875549,111.92,111.77,92.4382]
[1644343886585,38.12759935,111.92,111.77,98.4382]
[1644343886786,46.82255181,111.92,111.77,98.4382]
[1644343887389,46.82255181,111.92,111.78,42.21346359]
[1644343887586,46.82255181,111.92,111.78,48.21346359]
[1644343887786,46.82255181,111.92,111.79,13.4173]
[1644343888186,46.82255181,111.92,111.79,19.4173]
[1644343888396,44.3028329,111.92,111.79,27.1693]
[1644343888592,44.3028329,111.92,111.79,21.1693]
[1644343888995,46.82255181,111.92,111.79,27.1693]
[1644343889196,60.09185181,111.92,111.79,21.1693]
[1644343889598,60.09185181,111.92,111.78,42.21346359]
[1644343889798,2.51971891,111.91,111.78,42.21346359]
[1644343890100,13.4234,111.87,111.78,42.21346359]
[1644343890497,19.4234,111.87,111.78,42.21346359]
[1644343892498,36.29772581,111.87,111.78,42.21346359]
[1644343893800,36.54772581,111.87,111.78,42.21346359]
[1644343894400,19.6734,111.87,111.78,42.21346359]
[1644343895034,19.6734,111.87,111.78,55.63206359]
[1644343895839,19.6734,111.87,111.78,66.92206359]
[1644343901444,47.23741891,111.9,111.78,69.24306981]
[1644343901639,2.51971891,111.91,111.78,75.24306981]
[1644343901839,2.51971891,111.92,111.78,129.25306981]
[1644343902041,5.05383621,111.93,111.78,129.25306981]
[1644343902241,38.50032912,111.92,111.78,129.25306981]
[1644343902643,44.50032912,111.92,111.78,129.25306981]
[1644343902846,13.4116,111.91,111.78,129.25306981]
[1644343903244,19.4116,111.91,111.78,129.25306981]
[1644343903645,19.4116,111.91,111.78,75.24306981]
[1644343903844,19.4116,111.91,111.78,129.25306981]
[1644343904345,19.6616,111.91,111.78,75.24306981]
[1644343904546,22.18131891,111.91,111.78,74.99306981]
[1644343904746,22.18131891,111.91,111.78,88.50496981]
[1644343905348,22.18131891,111.91,111.78,82.50496981]
[1644343905546,22.18131891,111.91,111.79,47.0101]
[1644343905771,22.18131891,111.91,111.82,13.4133]
[1644343905947,22.18131891,111.91,111.83,34.2719742]
[1644343906348,2.53900231,111.9,111.79,93.79671173]
[1644343906548,15.93401891,111.89,111.79,47.0101]
[1644343906751,18.0417744,111.89,111.79,47.0101]
[1644343906947,24.0417744,111.89,111.79,60.4277]
[1644343907348,24.0417744,111.89,111.8,45.1318863]
[1644343907548,19.4143,111.89,111.8,53.8608863]
[1644343907748,13.4123,111.9,111.8,61.93679803]
[1644343907952,2.51971891,111.91,111.81,26.97301173]
[1644343908347,11.0604936,111.91,111.81,25.1471]
[1644343908548,8.51971891,111.91,111.81,24.8971]
[1644343908749,5.06177236,111.9,111.81,37.0721]
[1644343908948,18.47417236,111.9,111.81,37.0721]
[1644343909149,21.93211891,111.9,111.81,37.0721]
[1644343909347,15.93211891,111.9,111.81,36.8221]
[1644343909550,15.93211891,111.9,111.81,37.0721]
[1644343909753,15.93211891,111.9,111.83,13.4107]
[1644343909951,15.93211891,111.9,111.84,41.25488893]
[1644343910252,16.18211891,111.9,111.84,41.25488893]
[1644343910653,8.76971891,111.9,111.84,49.41688893]
[1644343910850,0.25,111.9,111.84,49.41688893]
[1644343911051,15.93081891,111.91,111.84,49.41688893]
[1644343911251,21.93081891,111.91,111.84,49.41688893]
[1644343911952,21.93081891,111.91,111.85,1.2389511]
[1644343912153,15.95448458,111.9,111.85,1.2389511]
[1644343912351,13.4125,111.9,111.85,1.2389511]
[1644343912956,8.51971891,111.91,111.85,14.6494511]
[1644343913152,6.0,111.91,111.85,26.7874511]
[1644343913553,13.4088,111.93,111.85,27.0374511]
[1644343913754,19.4088,111.93,111.85,27.0374511]
[1644343913954,47.04893216,111.92,111.85,65.45480479]
[1644343914153,53.04893216,111.92,111.85,65.45480479]
[1644343914354,53.29893216,111.92,111.85,65.45480479]
[1644343914757,2.10775549,111.91,111.85,13.3769511]
[1644343915053,2.10775549,111.91,111.85,1.2389511]
[1644343915253,10.6274744,111.91,111.85,1.2389511]
[1644343915656,2.10775549,111.9,111.85,1.2389511]
[1644343916056,8.10775549,111.9,111.85,1.2389511]
[1644343916658,38.10775549,111.89,111.79,13.4178]
[1644343916859,38.10775549,111.89,111.76,22.5437]
[1644343917159,2.10775549,111.88,111.77,24.0439]
[1644343917458,8.10775549,111.88,111.77,24.0439]
[1644343917657,37.86938804,111.87,111.78,40.40927086]
[1644343917858,13.4188,111.86,111.78,53.82807086]
[1644343918257,19.4188,111.86,111.78,53.82807086]
[1644343920060,19.6688,111.86,111.78,53.82807086]
[1644343921178,19.6688,111.86,111.78,54.07807086]
[1644343921389,21.77655549,111.86,111.77,13.4203]
[1644343921578,29.71255549,111.86,111.72,48.6791]
[1644343921778,55.6699744,111.86,111.72,48.6791]
[1644343921980,53.15025549,111.86,111.72,48.6791]
[1644343922277,55.6699744,111.86,111.73,38.38428944]
[1644343922478,53.15025549,111.86,111.73,38.38428944]
[1644343922878,53.15025549,111.86,111.75,13.4222]
[1644343923078,45.21425549,111.86,111.75,13.4222]
[1644343923680,45.21425549,111.86,111.76,24.823]
[1644343923980,45.21425549,111.86,111.77,38.7567702]
[1644343924180,21.77655549,111.86,111.77,38.7567702]
[1644343925482,21.77655549,111.86,111.77,52.1771702]
[1644343925784,19.6688,111.86,111.77,52.4271702]
[1644343926679,19.6688,111.86,111.77,52.1771702]
[1644343926879,19.6688,111.86,111.77,52.4271702]
[1644343927482,19.4188,111.86,111.77,60.50372249]
[1644343927880,6.0,111.86,111.77,60.50372249]
[1644343928081,6.0,111.87,111.77,114.51372249]
[1644343928384,2.51971891,111.89,111.77,114.82446188]
[1644343928581,5.0615319,111.91,111.78,49.6185]
[1644343928780,5.0615319,111.91,111.81,13.4105]
[1644343928981,18.4720319,111.91,111.82,36.69176715]
[1644343929180,15.93021891,111.91,111.82,36.69176715]
[1644343929581,22.18021891,111.91,111.82,36.69176715]
[1644343929981,22.18021891,111.91,111.83,13.4132]
[1644343932782,19.6605,111.91,111.83,13.6632]
[1644343933485,19.4105,111.91,111.83,13.6632]
[1644343934483,6.0,111.91,111.83,15.74963641]
[1644343934685,6.0,111.92,111.83,31.80963641]
[1644343934884,6.0,111.92,111.83,54.55123641]
[1644343935082,6.0,111.94,111.83,54.55123641]
[1644343935283,8.51971891,111.95,111.83,54.55123641]
[1644343935485,2.51971891,111.95,111.83,108.56123641]
[1644343935683,6.0,111.95,111.83,108.56123641]
[1644343936087,0.25,111.95,111.83,108.56123641]
[1644343936284,66.42787602,111.96,111.83,108.56123641]
[1644343937684,19.655,111.96,111.83,108.56123641]
[1644343938286,6.25,111.96,111.83,54.55123641]
[1644343939287,61.54915567,111.97,111.83,108.56123641]
[1644343939487,13.1537,111.97,111.83,108.56123641]
[1644343939688,15.92201891,111.98,111.83,108.56123641]
[1644343939886,13.4023,111.98,111.83,121.68820919]
[1644343940292,2.51971891,112.01,111.89,13.3995]
[1644343940489,2.51971891,112.02,111.91,39.13496659]
[1644343940690,2.51971891,112.02,111.92,24.18715086]
[1644343940888,2.51971891,112.02,111.92,37.51358727]
[1644343941086,15.91671891,112.03,111.92,37.76358727]
[1644343941486,13.397,112.03,111.92,37.76358727]
[1644343941686,46.10366084,112.04,111.93,13.3982]
[1644343941889,13.3972,112.03,111.93,13.3982]
[1644343942089,19.3972,112.03,111.93,13.6482]
[1644343942291,2.10775549,112.02,111.93,13.3982]
[1644343942492,2.10775549,112.02,111.91,39.13496659]
[1644343942695,8.10775549,112.02,111.91,39.13496659]
[1644343943091,2.10775549,112.01,111.91,39.13496659]
[1644343943291,38.91465936,112.0,111.91,39.13496659]
[1644343943697,13.4039,111.99,111.91,52.53766659]
[1644343944094,21.51165549,111.99,111.91,52.53766659]
[1644343945095,19.4039,111.99,111.91,52.53766659]
[1644343945296,21.51165549,111.99,111.91,52.53766659]
[1644343945496,21.51165549,111.99,111.91,39.13496659]
[1644343946096,21.51165549,111.99,111.9,13.4047]
[1644343946299,21.51165549,111.99,111.89,22.5922]
[1644343946500,21.51165549,111.99,111.84,23.2638]
[1644343946997,19.4039,111.99,111.87,41.30906954]
[1644343947201,44.6796,112.0,111.88,44.6782]
[1644343947399,2.51971891,112.03,111.92,0.30375188]
[1644343947599,0.1,112.04,111.93,0.31164211]
[1644343947999,0.1,112.04,111.97,0.31983478]
[1644343948200,0.1,112.04,111.98,43.1623581]
[1644343948800,0.1,112.04,111.97,44.6404]
[1644343949001,0.1,112.04,111.94,70.4044]
[1644343949199,0.1,112.04,111.94,76.6544]
[1644343949498,0.1,112.04,111.95,44.6489]
[1644343949698,0.1,112.04,111.95,50.6489]
[1644343949898,2.20775549,112.04,111.94,70.4044]
[1644343950099,21.60415549,112.04,111.94,46.5162]
[1644343950300,21.60415549,112.04,111.87,13.6969]
[1644343950500,21.60415549,112.04,111.9,6.0]
[1644343950702,21.60415549,112.04,111.88,55.33315469]
[1644343950900,41.0862665,112.03,111.89,40.43101924]
[1644343951202,45.37860072,111.98,111.89,6.0]
[1644343951406,54.56060072,111.98,111.88,47.2428]
[1644343951613,2.10775549,111.97,111.88,47.2428]
[1644343952000,8.10775549,111.97,111.88,47.2428]
[1644343952403,47.03438234,111.96,111.89,36.84574251]
[1644343952603,53.03438234,111.96,111.89,36.84574251]
[1644343952803,68.54723783,111.96,111.83,44.6962]
[1644343953004,2.10775549,111.95,111.79,71.5866]
[1644343953203,8.10775549,111.95,111.8,2.09035469]
[1644343953605,8.10775549,111.95,111.8,16.24810923]
[1644343953805,8.10775549,111.95,111.81,71.30654172]
[1644343954006,6.0,111.95,111.84,13.4104]
[1644343954212,8.10775549,111.98,111.84,13.4104]
[1644343954405,8.10775549,111.98,111.84,13.6604]
[1644343954605,8.10775549,111.98,111.84,13.4104]
[1644343954808,8.10775549,111.98,111.85,2.09035469]
[1644343955007,13.406,111.95,111.86,13.4088]
[1644343955211,40.41503713,111.94,111.87,44.45912891]
[1644343956009,46.41503713,111.94,111.87,44.45912891]
[1644343956213,59.82323713,111.94,111.87,44.45912891]
[1644343958713,59.82323713,111.94,111.85,23.7932]
[1644343958916,59.82323713,111.94,111.83,23.3085]
[1644343959116,61.93099262,111.94,111.83,23.3085]
[1644343959717,61.93099262,111.94,111.84,45.00373168]
[1644343960617,61.93099262,111.94,111.8,47.3867]
[1644343960922,69.68699262,111.94,111.8,47.3867]
[1644343961116,72.20671153,111.94,111.8,47.3867]
[1644343961316,69.68699262,111.94,111.8,47.3867]
[1644343961518,72.20671153,111.94,111.8,47.3867]
[1644343961718,61.93099262,111.94,111.81,45.33124573]
[1644343961920,61.93099262,111.94,111.81,47.42651445]
[1644343962124,61.93099262,111.94,111.83,35.9174792]
[1644343964027,64.45071153,111.94,111.8,23.3698]
[1644343964226,90.35900755,111.94,111.8,23.3698]
[1644343964430,5.05445196,111.93,111.79,13.4175]
[1644343964627,13.4184,111.9,111.76,67.642]
[1644343964827,13.4184,111.9,111.77,24.3463]
[1644343965026,44.39773523,111.89,111.78,34.20140547]
[1644343965226,44.39773523,111.89,111.78,47.87000547]
[1644343965427,50.39773523,111.89,111.78,74.27487419]
[1644343965628,13.4167,111.86,111.78,74.27487419]
[1644343967128,13.4167,111.86,111.78,80.27487419]
[1644343968130,13.415,111.87,111.78,80.27487419]
[1644343968330,44.7134,111.91,111.78,80.27487419]
[1644343968730,50.7134,111.91,111.78,80.27487419]
[1644343968932,47.61762225,111.9,111.78,80.27487419]
[1644343969741,13.414,111.88,111.78,80.27487419]
[1644343969944,48.82694172,111.88,111.78,80.27487419]
[1644343971243,48.82694172,111.88,111.78,74.27487419]
[1644343971944,48.82694172,111.88,111.78,80.27487419]
[1644343972146,48.82694172,111.88,111.78,74.27487419]
[1644343972643,54.82694172,111.88,111.78,74.27487419]
[1644343973145,54.82694172,111.88,111.78,72.17960547]
[1644343973744,19.414,111.88,111.79,2.09526872]
[1644343973946,19.414,111.88,111.81,13.4129]
[1644343974345,19.414,111.88,111.81,13.6629]
[1644343974750,42.41609122,111.87,111.82,46.82478579]
[1644343974948,55.83069122,111.87,111.82,46.82478579]
[1644343975148,6.0,111.87,111.82,46.82478579]
[1644343975547,6.0,111.87,111.82,60.23838579]
[1644343975746,50.7116,111.91,111.82,60.23838579]
[1644343976148,42.61979195,111.9,111.82,60.23838579]
[1644343976549,48.61979195,111.9,111.82,60.23838579]
[1644343976749,13.4137,111.88,111.82,60.23838579]
[1644343977151,50.10778274,111.88,111.82,60.23838579]
[1644343978853,13.4137,111.88,111.82,60.23838579]
[1644343979053,13.4137,111.88,111.82,60.48838579]
[1644343979653,13.4137,111.88,111.82,60.23838579]
[1644343980853,34.93572943,111.87,111.82,60.23838579]
[1644343982457,13.4137,111.88,111.82,60.23838579]
[1644343982656,13.4137,111.88,111.82,60.48838579]
[1644343984459,13.4121,111.89,111.82,60.48838579]
[1644343984660,95.50791891,111.93,111.82,70.25138579]
[1644343984861,95.50791891,111.93,111.83,23.1437]
[1644343985063,98.9882,111.93,111.84,13.4106]
[1644343985259,43.15012005,111.92,111.85,42.91978437]
[1644343985960,49.15012005,111.92,111.85,42.91978437]
[1644343986761,13.4106,111.91,111.85,42.91978437]
[1644343986960,35.40978616,111.9,111.85,42.91978437]
[1644343987161,35.40978616,111.9,111.84,13.4106]
[1644343987565,41.40978616,111.9,111.83,36.5561]
[1644343988162,41.40978616,111.9,111.83,71.8558162]
[1644343988764,54.82078616,111.9,111.83,71.8558162]
[1644343992068,54.82078616,111.9,111.83,36.5561]
[1644343992270,54.82078616,111.9,111.81,24.7185]
[1644343992472,65.73854165,111.9,111.81,24.7185]
[1644343992673,68.25826056,111.9,111.8,22.9453]
[1644343993071,65.73854165,111.9,111.8,22.9453]
[1644343993269,65.73854165,111.9,111.81,36.64992151]
[1644343994370,65.73854165,111.9,111.8,22.9453]
[1644343994571,81.23217101,111.9,111.77,23.1161]
[1644343994772,2.5485894,111.89,111.77,23.1161]
[1644343994972,13.4215,111.86,111.77,23.1161]
[1644343995174,28.4135,111.86,111.77,23.1161]
[1644343995472,36.64888858,111.85,111.78,35.83609827]
[1644343995671,42.64888858,111.85,111.78,35.83609827]
[1644343996073,44.70624739,111.82,111.78,35.83609827]
[1644343996273,44.70624739,111.82,111.75,112.5]
[1644343996475,50.70624739,111.82,111.75,112.5]
[1644343997174,50.70624739,111.82,111.76,36.48197228]
[1644343997574,13.424,111.8,111.76,36.48197228]
[1644343999575,19.424,111.8,111.74,13.4224]
[1644343999776,19.424,111.8,111.72,49.0543]
[1644343999976,29.662,111.8,111.69,24.2998]
[1644344000575,44.8377383,111.79,111.7,47.54964361]
[1644344000777,13.4276,111.77,111.7,85.96854361]
[1644344000975,60.66955854,111.77,111.7,85.96854361]
[1644344001377,13.4276,111.77,111.7,85.96854361]
[1644344002881,13.4276,111.77,111.7,86.21854361]
[1644344003079,41.03360343,111.76,111.7,47.54964361]
[1644344003300,13.4301,111.75,111.7,47.54964361]
[1644344004982,37.71077067,111.8,111.7,47.54964361]
[1644344005185,44.7509,111.81,111.72,13.4243]
[1644344005386,120.0402,111.84,111.72,23.5483]
[1644344005585,120.0402,111.84,111.73,49.54770896]
[1644344005784,120.0402,111.84,111.73,49.79770896]
[1644344005984,120.0402,111.84,111.73,47.7023]
[1644344006186,44.72483104,111.83,111.74,37.46449741]
[1644344006584,50.72483104,111.83,111.74,37.71449741]
[1644344006784,13.4229,111.81,111.74,51.13739741]
[1644344006985,45.0236757,111.8,111.74,51.13739741]
[1644344007186,51.0236757,111.8,111.74,37.46449741]
[1644344008786,13.4252,111.79,111.74,37.46449741]
[1644344009686,40.27966245,111.78,111.73,47.4523]
[1644344009886,53.70526245,111.78,111.73,47.4523]
[1644344010809,13.4256,111.78,111.73,94.32802854]
[1644344010987,13.424,111.79,111.73,107.75262854]
[1644344011187,19.424,111.79,111.73,107.75262854]
[1644344011788,13.424,111.79,111.73,107.75262854]
[1644344016191,51.64790866,111.79,111.73,107.75262854]
[1644344018315,51.64790866,111.79,111.73,46.87572854]
[1644344019099,57.64790866,111.79,111.73,46.87572854]
[1644344021506,13.424,111.79,111.73,46.87572854]
[1644344021707,13.424,111.79,111.73,52.87572854]
[1644344021909,13.4231,111.8,111.73,52.87572854]
[1644344022109,13.4231,111.8,111.73,53.12572854]
[1644344022406,46.73003499,111.79,111.73,53.12572854]
[1644344022608,13.4231,111.8,111.73,47.12572854]
[1644344022808,1.26971911,111.86,111.76,0.31764877]
[1644344023011,1.26971911,111.88,111.74,58.79139658]
[1644344023208,1.26971911,111.88,111.77,2.09540896]
[1644344023408,13.4149,111.88,111.78,24.9809]
[1644344023612,41.21094773,111.87,111.79,34.36855315]
[1644344023808,41.21094773,111.87,111.81,13.4149]
[1644344024008,41.21094773,111.87,111.82,34.22698436]
[1644344024410,47.21094773,111.87,111.82,34.22698436]
[1644344024911,47.21094773,111.87,111.79,22.7977]
[1644344025110,47.21094773,111.87,111.8,13.4167]
[1644344025310,47.21094773,111.87,111.79,22.7977]
[1644344025512,48.48066684,111.87,111.79,22.7977]
[1644344025710,48.48066684,111.87,111.79,23.0477]
[1644344025925,6.0,111.87,111.79,25.14310896]
[1644344026127,6.0,111.88,111.79,38.56120896]
[1644344026325,1.26971911,111.89,111.79,38.56120896]
[1644344026525,6.0,111.89,111.8,22.9642]
[1644344026725,6.0,111.89,111.8,23.2142]
[1644344026925,41.34208939,111.88,111.81,42.63208894]
[1644344027125,47.34208939,111.88,111.81,42.63208894]
[1644344027327,47.34208939,111.88,111.82,13.4142]
[1644344027627,47.34208939,111.88,111.83,48.32132281]
[1644344028928,47.34208939,111.88,111.81,13.4156]
[1644344029127,47.34208939,111.88,111.8,22.9642]
[1644344029727,47.34208939,111.88,111.8,25.05960896]
[1644344029928,41.34208939,111.88,111.81,35.36558128]
[1644344030131,41.34208939,111.88,111.82,13.414]
[1644344030330,41.34208939,111.88,111.83,47.75992919]
[1644344030528,1.26971911,111.91,111.83,47.75992919]
[1644344030928,7.26971911,111.91,111.83,47.75992919]
[1644344031531,47.28489468,111.91,111.83,47.75992919]
[1644344031829,47.28489468,111.91,111.83,63.26863815]
[1644344032031,1.26971911,111.93,111.84,0.32091273]
[1644344032232,1.26971911,111.94,111.84,46.33171273]
[1644344032432,1.26971911,111.95,111.85,17.61198931]
[1644344032633,1.26971911,111.96,111.85,23.61198931]
[1644344032832,1.26971911,111.97,111.86,24.0597]
[1644344033032,37.83430521,111.97,111.87,49.63395528]
[1644344033231,1.26971911,111.97,111.87,49.88395528]
[1644344033632,6.0,111.97,111.87,49.88395528]
[1644344033935,7.26971911,111.97,111.87,49.88395528]
[1644344034131,43.45943682,111.96,111.87,49.88395528]
[1644344035133,43.45943682,111.96,111.87,51.97936424]
[1644344035535,43.45943682,111.96,111.87,49.88395528]
[1644344036933,43.45943682,111.96,111.87,51.97936424]
[1644344037335,1.26971911,111.99,111.89,0.30840768]
[1644344037635,326.96424846,112.0,111.92,13.398]
[1644344037834,326.96424846,112.0,111.92,13.648]
[1644344038035,326.96424846,112.0,111.92,19.648]
[1644344038235,41.737544,111.99,111.92,13.398]
[1644344038635,47.737544,111.99,111.88,24.2589]
[1644344038837,76.79925419,111.99,111.86,23.1348]
[1644344039039,1.26971911,111.97,111.86,23.1348]
[1644344039238,1.26971911,111.98,111.86,29.1348]
[1644344039437,43.00726311,111.99,111.87,2.09540896]
[1644344039636,36.29538832,111.97,111.9,13.4028]
[1644344039837,326.96424846,112.0,111.9,13.4028]
[1644344040037,326.96424846,112.0,111.9,27.7798]
[1644344040839,47.0544772,111.99,111.9,68.23642064]
[1644344041038,47.0544772,111.99,111.9,62.23642064]
[1644344041239,53.0544772,111.99,111.9,62.23642064]
[1644344041641,47.0544772,111.99,111.9,70.3318296]
[1644344041838,47.0544772,111.99,111.9,68.23642064]
[1644344042038,47.0544772,111.99,111.91,2.09540896]
[1644344042240,47.0544772,111.99,111.91,2.34540896]
[1644344042438,47.0544772,111.99,111.93,13.4002]
[1644344042638,47.0544772,111.99,111.94,35.48121544]
[1644344042838,47.0544772,111.99,111.94,0.88370107]
[1644344043038,47.0544772,111.99,111.94,0.63370107]
[1644344043241,53.0544772,111.99,111.94,0.63370107]
[1644344044841,66.4572772,111.99,111.94,0.63370107]
[1644344046148,60.4572772,111.99,111.94,0.63370107]
[1644344046351,66.4572772,111.99,111.94,0.63370107]
[1644344048851,67.72699631,111.99,111.94,0.63370107]
[1644344051054,1.26971911,111.98,111.94,0.63370107]
[1644344051254,145.65442297,111.97,111.86,23.0939]
[1644344051453,146.92414208,111.97,111.84,38.72380535]
[1644344051652,1.26971911,111.96,111.84,38.72380535]
[1644344051853,39.27883937,111.95,111.84,38.72380535]
[1644344052257,1.26971911,111.94,111.84,38.72380535]
[1644344052457,42.46421174,111.92,111.84,38.72380535]
[1644344052657,48.46421174,111.92,111.84,38.72380535]
[1644344053057,48.46421174,111.92,111.84,38.97380535]
[1644344053260,42.46421174,111.92,111.84,38.97380535]
[1644344053457,48.46421174,111.92,111.84,52.38500535]
[1644344054158,6.0,111.92,111.84,54.48041431]
[1644344054358,51.96881911,111.96,111.84,54.48041431]
[1644344054661,51.96881911,111.96,111.84,52.38500535]
[1644344054858,51.96881911,111.96,111.84,54.48041431]
[1644344055059,44.53043546,111.95,111.84,54.48041431]
[1644344055260,44.53043546,111.95,111.84,78.62221431]
[1644344055461,50.53043546,111.95,111.84,78.62221431]
[1644344055660,51.80015457,111.95,111.84,78.62221431]
[1644344055862,51.80015457,111.95,111.84,76.52680535]
[1644344056461,51.80015457,111.95,111.84,78.37221431]
[1644344056661,51.80015457,111.95,111.84,76.27680535]
[1644344056861,40.20699904,111.93,111.84,76.27680535]
[1644344057060,46.20699904,111.93,111.84,76.27680535]
[1644344057563,6.0,111.93,111.84,76.27680535]
[1644344057762,1.26971911,111.95,111.85,2.09540896]
[1644344057963,14.67671911,111.96,111.88,13.4062]
[1644344058362,14.67671911,111.96,111.88,13.6562]
[1644344058562,42.13297983,111.95,111.89,38.36289556]
[1644344059161,14.67671911,111.96,111.89,38.36289556]
[1644344059783,1.26971911,111.95,111.89,38.36289556]
[1644344059981,14.67731911,111.95,111.89,38.36289556]
[1644344060481,1.26971911,111.95,111.89,38.36289556]
[1644344060682,7.26971911,111.96,111.89,40.70830452]
[1644344060884,1.26971911,111.96,111.89,53.10330452]
[1644344061083,1.26971911,111.97,111.89,53.10330452]
[1644344061484,1.26971911,111.98,111.89,53.10330452]
[1644344061683,1.26971911,111.97,111.89,53.10330452]
[1644344062584,1.26971911,111.97,111.89,59.10330452]
[1644344062787,1.26971911,111.97,111.89,72.50860452]
[1644344063385,1.26971911,111.98,111.89,72.50860452]
[1644344064087,48.48199446,111.97,111.89,72.50860452]
[1644344064287,48.48199446,111.97,111.89,81.94939556]
[1644344064488,49.75171357,111.97,111.89,81.69939556]
[1644344064690,49.75171357,111.97,111.89,75.94939556]
[1644344064891,49.75171357,111.97,111.89,75.69939556]
[1644344065089,45.09827488,111.95,111.89,75.69939556]
[1644344066190,45.09827488,111.95,111.89,75.94939556]
[1644344066391,45.09827488,111.95,111.89,75.69939556]
[1644344066592,1.26971911,111.96,111.89,75.94939556]
[1644344067495,48.72000857,111.96,111.89,75.94939556]